[Event "90th GER-ch 2019"]
[Site "Magdeburg"]
[Date "2019.05.31"]
[Round "8.12"]
[White "Moeller, Dustin"]
[Black "Bastian, Herbert"]
[Result "0-1"]
[ECO "E97"]
[WhiteElo "2156"]
[BlackElo "2297"]
[Annotator "ChessBase"]
[PlyCount "102"]
[EventDate "2019.05.26"]
[EventType "tourn"]
[EventCountry "GER"]
[SourceTitle "playchess.com"]
[Source "ChessBase"]
[SourceQuality "1"]
[TimeControl "40/5400+30:1800+30"]

1. d4 {[%emt 0:00:00]} Nf6 {[%emt 0:00:00]} 2. c4 {[%emt 0:00:00]} g6 {[%emt 0:00:26]} 3. Nc3 {[%emt 0:00:00]} Bg7 {[%emt 0:00:24]} 4. e4 {[%emt 0:00:00]} d6 {[%emt 0:00:16]} 5. Be2 {[%emt 0:00:01]} O-O {[%emt 0:00:26]} 6. Nf3 {[%emt 0:00:04]} e5 {[%emt 0:00:51]} 7. O-O {[%emt 0:00:08]} Nc6 {[%emt 0:00:26]} 8. d5 {[%emt 0:00:07]} Ne7 {[%emt 0:01:07]} 9. Nd2 {[%emt 0:00:07]} a5 {[%emt 0:03:12]} 10. a3 {[%emt 0:00:06]} Nd7 {[%emt 0:00:57]} 11. Rb1 {[%emt 0:00:10]} f5 {[%emt 0:01:08]} 12. b4 {[%emt 0:00:06]} Kh8 {[%emt 0:00:55]} 13. f3 {[%emt 0:00:06]} Ng8 {[%emt 0:02:32]} 14. Qc2 {[%emt 0:00:07]} Ngf6 {[%emt 0:01:19]} 15. Bd3 {[%emt 0:00:07]} f4 {[%emt 0:00:50]} 16. Nb5 {[%emt 0:00:06]} b6 {[%emt 0:03:06]} 17. Bb2 {[%emt 0:00:05]} Rf7 {[%emt 0:01:48]} 18. Be2 {[%emt 0:00:56]} Bf8 {[%emt 0:03:28]} 19. Nb3 {[%emt 0:01:18]} a4 {[%emt 0:06:33]} 20. Nc1 {[%emt 0:00:08]} g5 {[%emt 0:00:13]} 21. Nd3 {[%emt 0:00:06]} h5 {[%emt 0:03:53]} 22. c5 {[%emt 0:01:26]} Ne8 {[%emt 0:19:55]} 23. Rbc1 {[%emt 0:10:36]} Ba6 {[%emt 0:09:33]} 24. Qxa4 {[%emt 0:12:28]} bxc5 {[%emt 0:00:37]} 25. bxc5 {[%emt 0:00:32]} Qb8 {[%emt 0:06:06]} 26. Nb4 {[%emt 0:02:33]} Nxc5 {[%emt 0:02:37]} 27. Rxc5 {[%emt 0:00:22]} dxc5 {[%emt 0:00:32]} 28. Nxa6 {[%emt 0:00:14]} Qb6 {[%emt 0:01:07]} 29. Bxe5+ {[%emt 0:00:33]} Bg7 {[%emt 0:00:54]} 30. Bxg7+ {[%emt 0:00:50]} Rxg7 {[%emt 0:01:53]} 31. Nc3 {[%emt 0:14:44]} c4+ {[%emt 0:00:14]} 32. Kh1 {[%emt 0:00:05]} Qxa6 {[%emt 0:01:52]} 33. Qxa6 {[%emt 0:00:32]} Rxa6 {[%emt 0:00:02]} 34. a4 {[%emt 0:01:57]} Ra5 {[%emt 0:01:50]} 35. Rb1 {[%emt 0:19:20]} Re7 {[%emt 0:01:45]} 36. Rb4 {[%emt 0:16:38]} Nd6 {[%emt 0:00:36]} 37. Kg1 {[%emt 0:00:53]} Kg7 {[%emt 0:00:32]} 38. Kf2 {[%emt 0:11:00]} Kf6 {[%emt 0:00:09]} 39. Bd1 {[%emt 0:00:06]} Ke5 {[%emt 0:00:43]} 40. Ne2 {[%emt 0:00:15]} c6 {[%emt 0:02:25]} 41. dxc6 {[%emt 0:32:44]} Rc5 {[%emt 0:30:15]} 42. Nc3 {[%emt 0:05:36]} Rxc6 {[%emt 0:00:45]} 43. Ke1 {[%emt 0:02:09]} Rb7 {[%emt 0:02:12]} 44. Rxb7 {[%emt 0:00:00]} Nxb7 {[%emt 0:00:00]} 45. Kd2 {[%emt 0:00:00]} Rb6 46. Nb5 {[%emt 0:00:00]} Nd6 {[%emt 0:00:00]} 47. Nc3 {[%emt 0:00:00]} Rb2+ {[%emt 0:00:00]} 48. Bc2 {[%emt 0:00:00]} g4 {[%emt 0:00:00]} 49. Ne2 {[%emt 0:00:00]} Ra2 {[%emt 0:00:00]} 50. g3 {[%emt 0:00:00]} Nxe4+ {[%emt 0:00:00]} 51. fxe4 {[%emt 0:00:00]} f3 {[%emt 0:00:00]} 0-1

[Event "90th GER-ch 2019"]
[Site "Magdeburg"]
[Date "2019.05.31"]
[Round "8.13"]
[White "Dauth, Benjamin"]
[Black "Polster, Christian"]
[Result "1/2-1/2"]
[ECO "C50"]
[WhiteElo "2295"]
[BlackElo "2236"]
[Annotator "ChessBase"]
[PlyCount "88"]
[EventDate "2019.05.26"]
[EventType "tourn"]
[EventCountry "GER"]
[SourceTitle "playchess.com"]
[Source "ChessBase"]
[SourceQuality "1"]
[TimeControl "40/5400+30:1800+30"]

1. e4 {[%emt 0:00:00]} e5 {[%emt 0:00:00]} 2. Bc4 {[%emt 0:00:50]} Nc6 {[%emt 0:00:34]} 3. Nf3 {[%emt 0:02:12]} Bc5 {[%emt 0:00:16]} 4. d3 {[%emt 0:00:22]} Nf6 {[%emt 0:01:24]} 5. Be3 {[%emt 0:00:11]} Bb6 {[%emt 0:02:22]} 6. h3 {[%emt 0:00:47]} d6 {[%emt 0:11:40]} 7. a4 {[%emt 0:02:40]} h6 {[%emt 0:09:00]} 8. Nbd2 {[%emt 0:06:39]} O-O {[%emt 0:05:53]} 9. O-O {[%emt 0:02:42]} Bxe3 {[%emt 0:08:52]} 10. fxe3 {[%emt 0:00:21]} Ne7 {[%emt 0:00:36]} 11. Nh4 {[%emt 0:01:52]} c6 {[%emt 0:04:06]} 12. Bb3 {[%emt 0:02:12]} Kh7 {[%emt 0:05:03]} 13. a5 {[%emt 0:07:32]} Ng6 {[%emt 0:05:48]} 14. Nxg6 {[%emt 0:01:45]} Kxg6 {[%emt 0:01:37]} 15. Nf3 {[%emt 0:02:45]} Kh7 {[%emt 0:00:57]} 16. c3 {[%emt 0:05:12]} Qe7 {[%emt 0:02:37]} 17. Qe1 {[%emt 0:00:53]} g6 {[%emt 0:07:30]} 18. Qh4 {[%emt 0:02:33]} Kg7 {[%emt 0:00:26]} 19. Rf2 {[%emt 0:02:01]} Be6 {[%emt 0:01:41]} 20. Bc2 {[%emt 0:01:05]} Rfe8 {[%emt 0:03:59]} 21. g4 {[%emt 0:02:11]} Nh7 {[%emt 0:07:40]} 22. Qg3 {[%emt 0:00:28]} Ng5 {[%emt 0:03:49]} 23. Nd2 {[%emt 0:05:49]} c5 {[%emt 0:08:42]} 24. Raf1 {[%emt 0:01:58]} Rac8 {[%emt 0:00:51]} 25. h4 {[%emt 0:03:06]} Nh7 {[%emt 0:00:08]} 26. Bb3 {[%emt 0:00:06]} Bxb3 {[%emt 0:04:15]} 27. Nxb3 {[%emt 0:00:06]} c4 {[%emt 0:01:43]} 28. dxc4 {[%emt 0:10:53]} Rxc4 {[%emt 0:00:29]} 29. Rxf7+ {[%emt 0:00:41]} Qxf7 {[%emt 0:00:08]} 30. Rxf7+ {[%emt 0:00:03]} Kxf7 {[%emt 0:00:02]} 31. Qf3+ {[%emt 0:00:11]} Kg7 {[%emt 0:01:44]} 32. Qd1 {[%emt 0:01:14]} Rc6 {[%emt 0:01:26]} 33. Nd2 {[%emt 0:00:42]} Rf8 {[%emt 0:00:17]} 34. Kg2 {[%emt 0:01:01]} Nf6 {[%emt 0:00:40]} 35. g5 {[%emt 0:00:42]} hxg5 {[%emt 0:00:31]} 36. hxg5 {[%emt 0:00:04]} Nh7 {[%emt 0:00:24]} 37. Nf3 {[%emt 0:00:23]} Rf7 {[%emt 0:00:45]} 38. Qd5 {[%emt 0:01:33]} Nf8 {[%emt 0:00:23]} 39. Kf2 {[%emt 0:01:40]} Rd7 {[%emt 0:00:21]} 40. Ke2 {[%emt 0:02:19]} Rc5 {[%emt 0:00:33]} 41. Qa2 {[%emt 0:30:15]} Rc8 {[%emt 0:07:12]} 42. Qd5 {[%emt 0:00:00]} Rc5 {[%emt 0:02:13]} 43. Qa2 {[%emt 0:00:00]} Rc8 {[%emt 0:02:58]} 44. Qd5 {[%emt 0:00:00]} Rc5 {[%emt 0:00:20]} 1/2-1/2

[Event "90th GER-ch 2019"]
[Site "Magdeburg"]
[Date "2019.05.31"]
[Round "8.14"]
[White "Wachinger, Nikolas"]
[Black "Adiyaman, Rene"]
[Result "1-0"]
[ECO "A05"]
[WhiteElo "2311"]
[BlackElo "2175"]
[Annotator "ChessBase"]
[PlyCount "83"]
[EventDate "2019.05.26"]
[EventType "tourn"]
[EventCountry "GER"]
[SourceTitle "playchess.com"]
[Source "ChessBase"]
[SourceQuality "1"]
[TimeControl "40/5400+30:1800+30"]

1. Nf3 Nf6 2. g3 d5 3. Bg2 c6 4. O-O Bf5 5. d3 h6 6. Nbd2 Nbd7 7. Qe1 Bh7 8. e4 e6 9. Qe2 Be7 10. e5 Ng8 11. a4 a5 12. Nd4 Qb6 13. N2b3 Nc5 14. Be3 Nxb3 15. Nxb3 Qc7 16. f4 c5 17. Nd2 Bf8 18. Nb1 Ne7 19. Nc3 Nc6 20. Nb5 Qd7 21. Rad1 Be7 22. c3 O-O 23. Bf2 f6 24. exf6 Rxf6 25. Rfe1 Kh8 26. Bh3 Bg8 27. Rd2 Raf8 28. Qd1 Qe8 29. Bg4 Qf7 30. d4 c4 31. Nc7 Qg6 32. Bh5 Qh7 33. Rde2 Qf5 34. Re3 Bd6 35. Bg4 Qg6 36. Nxe6 Bxe6 37. Rxe6 Bxf4 38. gxf4 h5 39. Bh4 Nd8 40. f5 Qxg4+ 41. Qxg4 hxg4 42. Re8 1-0

[Event "90th GER-ch 2019"]
[Site "Magdeburg"]
[Date "2019.05.31"]
[Round "8.15"]
[White "Heimrath, Reiner"]
[Black "Nosek, Reinhard"]
[Result "1-0"]
[ECO "B24"]
[WhiteElo "2239"]
[BlackElo "1913"]
[Annotator "ChessBase"]
[PlyCount "67"]
[EventDate "2019.05.26"]
[EventType "tourn"]
[EventCountry "GER"]
[SourceTitle "playchess.com"]
[Source "ChessBase"]
[SourceQuality "1"]
[TimeControl "40/5400+30:1800+30"]

1. e4 {[%emt 0:00:00]} c5 {[%emt 0:00:00]} 2. Nc3 {[%emt 0:00:00]} Nc6 {[%emt 0:00:00]} 3. d3 {[%emt 0:00:33]} e6 {[%emt 0:03:06]} 4. g3 {[%emt 0:01:29]} d6 {[%emt 0:02:29]} 5. Bg2 {[%emt 0:00:15]} Bd7 {[%emt 0:01:43]} 6. Nge2 {[%emt 0:00:12]} Be7 {[%emt 0:01:23]} 7. O-O {[%emt 0:00:11]} a6 {[%emt 0:01:09]} 8. a4 {[%emt 0:01:33]} b6 {[%emt 0:00:19]} 9. f4 {[%emt 0:01:32]} h5 {[%emt 0:01:30]} 10. h3 {[%emt 0:00:22]} Nb4 {[%emt 0:06:11]} 11. Be3 {[%emt 0:08:21]} Bc6 {[%emt 0:00:39]} 12. d4 {[%emt 0:03:03]} Nf6 {[%emt 0:05:50]} 13. d5 {[%emt 0:27:35]} exd5 {[%emt 0:00:32]} 14. Nxd5 {[%emt 0:00:16]} Nbxd5 {[%emt 0:00:37]} 15. exd5 {[%emt 0:00:07]} Bd7 {[%emt 0:00:17]} 16. a5 {[%emt 0:06:47]} Qc8 {[%emt 0:01:28]} 17. axb6 {[%emt 0:00:45]} Rb8 {[%emt 0:00:10]} 18. Kh2 {[%emt 0:04:37]} h4 {[%emt 0:00:13]} 19. f5 {[%emt 0:12:10]} Bxf5 {[%emt 0:03:33]} 20. g4 {[%emt 0:03:52]} Bxg4 {[%emt 0:11:24]} 21. Rxf6 {[%emt 0:04:06]} Bxf6 {[%emt 0:00:02]} 22. hxg4 {[%emt 0:00:18]} Rxb6 {[%emt 0:00:59]} 23. Ra4 {[%emt 0:03:49]} Be5+ {[%emt 0:01:14]} 24. Bf4 {[%emt 0:03:55]} Qxg4 {[%emt 0:01:54]} 25. Re4 {[%emt 0:09:08]} h3 {[%emt 0:00:15]} 26. Bh1 {[%emt 0:00:11]} f5 {[%emt 0:05:10]} 27. Re3 {[%emt 0:00:07]} Qg5 {[%emt 0:04:11]} 28. Rxe5+ {[%emt 0:00:20]} dxe5 {[%emt 0:01:39]} 29. Bxg5 {[%emt 0:00:08]} Rd6 {[%emt 0:00:37]} 30. Be3 {[%emt 0:00:15]} g5 {[%emt 0:02:18]} 31. Bxc5 {[%emt 0:00:06]} Rd7 {[%emt 0:00:08]} 32. d6 {[%emt 0:00:12]} e4 {[%emt 0:00:42]} 33. Qd5 {[%emt 0:00:11]} g4 {[%emt 0:00:25]} 34. Qe5+ {[%emt 0:00:14]} 1-0

[Event "90th GER-ch 2019"]
[Site "Magdeburg"]
[Date "2019.05.31"]
[Round "8.16"]
[White "Guenther, Andreas"]
[Black "Kardoeus, David"]
[Result "1-0"]
[ECO "A01"]
[WhiteElo "2121"]
[BlackElo "2202"]
[Annotator "ChessBase"]
[PlyCount "151"]
[EventDate "2019.05.26"]
[EventType "tourn"]
[EventCountry "GER"]
[SourceTitle "playchess.com"]
[Source "ChessBase"]
[SourceQuality "1"]
[TimeControl "40/5400+30:1800+30"]

1. b3 {[%emt 0:00:00]} d5 {[%emt 0:01:05]} 2. Bb2 {[%emt 0:00:00]} c5 {[%emt 0:00:23]} 3. e3 {[%emt 0:00:00]} Nf6 {[%emt 0:01:58]} 4. f4 {[%emt 0:00:15]} Nc6 {[%emt 0:06:36]} 5. Bb5 {[%emt 0:02:01]} Bg4 {[%emt 0:05:26]} 6. Nf3 {[%emt 0:00:28]} e6 {[%emt 0:05:52]} 7. Bxc6+ {[%emt 0:00:59]} bxc6 {[%emt 0:00:08]} 8. h3 {[%emt 0:00:37]} Bxf3 {[%emt 0:02:56]} 9. Qxf3 {[%emt 0:00:08]} Be7 {[%emt 0:00:09]} 10. O-O {[%emt 0:00:27]} O-O {[%emt 0:00:24]} 11. Nc3 {[%emt 0:01:06]} Nd7 {[%emt 0:02:11]} 12. e4 {[%emt 0:03:20]} c4 {[%emt 0:00:12]} 13. Ne2 {[%emt 0:05:09]} Qb6+ {[%emt 0:07:18]} 14. Kh1 {[%emt 0:01:22]} f5 {[%emt 0:00:12]} 15. exf5 exf5 {[%emt 0:03:52]} 16. Rae1 {[%emt 0:06:19]} Rae8 {[%emt 0:15:44]} 17. Ng3 {[%emt 0:15:38]} Qa5 {[%emt 0:18:47]} 18. Qc3 {[%emt 0:29:14]} Qxc3 {[%emt 0:00:40]} 19. Bxc3 {[%emt 0:00:02]} cxb3 {[%emt 0:02:17]} 20. axb3 {[%emt 0:00:02]} g6 {[%emt 0:01:28]} 21. Ne2 {[%emt 0:03:02]} c5 {[%emt 0:01:20]} 22. g3 {[%emt 0:01:42]} d4 {[%emt 0:05:22]} 23. Ba5 {[%emt 0:01:02]} Bd6 {[%emt 0:00:34]} 24. d3 {[%emt 0:03:17]} Nf6 {[%emt 0:00:46]} 25. Kg2 {[%emt 0:00:26]} Nd5 {[%emt 0:01:02]} 26. Bd2 {[%emt 0:00:02]} Kf7 {[%emt 0:07:26]} 27. Ng1 {[%emt 0:00:40]} Be7 {[%emt 0:02:15]} 28. Re5 {[%emt 0:03:49]} Rd8 {[%emt 0:00:11]} 29. Ra1 {[%emt 0:00:15]} Rd7 {[%emt 0:00:54]} 30. Nf3 {[%emt 0:01:09]} Bf6 {[%emt 0:01:03]} 31. Re2 {[%emt 0:00:29]} Re8 {[%emt 0:01:17]} 32. Rxe8 {[%emt 0:01:57]} Kxe8 {[%emt 0:00:01]} 33. Ra5 {[%emt 0:00:33]} Rc7 {[%emt 0:00:25]} 34. Kf2 {[%emt 0:00:24]} Kd7 {[%emt 0:00:30]} 35. Ke2 {[%emt 0:01:58]} Kc6 {[%emt 0:00:46]} 36. Ra6+ {[%emt 0:01:17]} Nb6 {[%emt 0:00:07]} 37. Kf2 {[%emt 0:01:56]} Kb7 {[%emt 0:00:29]} 38. Ra1 {[%emt 0:00:27]} Nd5 {[%emt 0:00:33]} 39. Re1 {[%emt 0:01:35]} Re7 {[%emt 0:00:07]} 40. Rxe7+ {[%emt 0:00:45]} Nxe7 {[%emt 0:00:08]} 41. g4 {[%emt 0:36:10]} Kc6 {[%emt 0:34:35]} 42. Kg3 {[%emt 0:00:56]} Nd5 {[%emt 0:01:39]} 43. g5 {[%emt 0:04:52]} Bd8 {[%emt 0:00:00]} 44. h4 {[%emt 0:00:00]} Bc7 {[%emt 0:00:00]} 45. h5 {[%emt 0:00:00]} Kb5 {[%emt 0:00:00]} 46. Nh4 Ne7 47. h6 {[%emt 0:00:00]} Ba5 {[%emt 0:00:00]} 48. Bxa5 {[%emt 0:00:00]} Kxa5 {[%emt 0:00:00]} 49. Kf3 {[%emt 0:00:00]} Kb4 {[%emt 0:00:00]} 50. Ke2 {[%emt 0:00:00]} a5 {[%emt 0:00:00]} 51. Kd2 {[%emt 0:00:00]} a4 {[%emt 0:00:00]} 52. bxa4 {[%emt 0:00:00]} Kxa4 {[%emt 0:00:00]} 53. c3 {[%emt 0:00:00]} dxc3+ {[%emt 0:01:42]} 54. Kxc3 {[%emt 0:00:00]} Nd5+ {[%emt 0:00:12]} 55. Kc4 {[%emt 0:00:00]} Nxf4 {[%emt 0:00:10]} 56. Kxc5 {[%emt 0:00:00]} Ne6+ {[%emt 0:00:56]} 57. Kc6 {[%emt 0:00:00]} f4 {[%emt 0:02:06]} 58. Nf3 {[%emt 0:00:00]} Kb4 {[%emt 0:00:29]} 59. Kd5 {[%emt 0:00:00]} Nc7+ {[%emt 0:02:49]} 60. Ke5 {[%emt 0:00:00]} Kc3 {[%emt 0:00:16]} 61. d4 {[%emt 0:00:00]} Kd3 {[%emt 0:00:43]} 62. Kxf4 {[%emt 0:00:00]} Ke2 {[%emt 0:00:46]} 63. Nh4 {[%emt 0:00:00]} Ne6+ {[%emt 0:00:51]} 64. Kg4 {[%emt 0:00:00]} Nf8 {[%emt 0:01:05]} 65. Kf4 {[%emt 0:00:00]} Ne6+ {[%emt 0:00:10]} 66. Ke5 {[%emt 0:00:00]} Nxg5 {[%emt 0:00:01]} 67. Kf6 {[%emt 0:00:00]} Ne4+ {[%emt 0:00:50]} 68. Ke5 {[%emt 0:00:00]} Ng5 {[%emt 0:00:35]} 69. Nxg6 {[%emt 0:00:00]} Nf7+ {[%emt 0:00:13]} 70. Ke6 {[%emt 0:00:00]} Nxh6 {[%emt 0:00:04]} 71. Ne5 {[%emt 0:00:39]} Ke3 {[%emt 0:01:24]} 72. d5 {[%emt 0:00:09]} Ke4 {[%emt 0:00:13]} 73. d6 {[%emt 0:00:20]} Nf5 {[%emt 0:00:05]} 74. d7 {[%emt 0:00:26]} Nd4+ {[%emt 0:00:11]} 75. Kf6 {[%emt 0:00:32]} Nc6 {[%emt 0:00:28]} 76. Nxc6 {[%emt 0:00:10]} 1-0

[Event "90th GER-ch 2019"]
[Site "Magdeburg"]
[Date "2019.06.01"]
[Round "9.1"]
[White "Rosner, Jonas"]
[Black "Huschenbeth, Niclas"]
[Result "0-1"]
[ECO "A46"]
[WhiteElo "2413"]
[BlackElo "2603"]
[Annotator "RC"]
[PlyCount "128"]
[EventDate "2019.05.26"]
[EventType "tourn"]
[EventCountry "GER"]
[SourceTitle "playchess.com"]
[Source "ChessBase"]
[SourceQuality "1"]
[TimeControl "40/5400+30:1800+30"]

1. d4 {[%emt 0:00:00]} Nf6 {[%emt 0:00:46]} 2. Nf3 {[%emt 0:00:00]} e6 {[%emt 0:00:08]} 3. Bf4 {[%emt 0:00:05]} d5 {[%emt 0:03:22]} 4. e3 {[%emt 0:00:36]} Bd6 {[%emt 0:04:42]} 5. Bg3 {[%emt 0:00:33]} O-O {[%emt 0:00:26]} 6. Nbd2 {[%emt 0:01:40]} c5 {[%emt 0:00:29]} 7. c3 {[%emt 0:00:30]} Qc7 {[%emt 0:01:28]} 8. Bd3 {[%emt 0:00:32]} Nbd7 {[%emt 0:00:23]} 9. O-O {[%emt 0:00:35]} Bxg3 {[%emt 0:09:59]} 10. hxg3 {[%emt 0:00:21]} e5 {[%emt 0:00:04]} 11. e4 {[%emt 0:13:47]} dxe4 {[%emt 0:00:42]} 12. Nxe4 {[%emt 0:04:28]} Nxe4 {[%emt 0:02:45]} 13. Bxe4 {[%emt 0:00:10]} Nf6 {[%emt 0:00:11]} 14. Re1 {[%emt 0:04:02]} exd4 {[%emt 0:11:16]} 15. cxd4 {[%emt 0:01:01]} cxd4 {[%emt 0:18:33]} 16. Qxd4 {[%emt 0:07:33]} Rd8 {[%emt 0:01:10]} 17. Qb4 {[%emt 0:09:24]} a5 {[%emt 0:01:37]} 18. Qb5 {[%emt 0:02:36]} Nxe4 {[%emt 0:13:54]} 19. Rxe4 {[%emt 0:00:21]} Be6 {[%emt 0:00:27]} 20. Rae1 {[%emt 0:03:50]} h6 {[%emt 0:00:12]} 21. Nd4 {[%emt 0:07:48]} Bd7 {[%emt 0:13:01]} 22. Qh5 {[%emt 0:03:28]} Qd6 {[%emt 0:02:55]} 23. g4 {[%emt 0:07:21]} Qf6 {[%emt 0:01:21]} 24. Nf3 {[%emt 0:08:39]} Bc6 {[%emt 0:01:59]} 25. R4e3 {[%emt 0:02:11]} Rd5 {[%emt 0:01:06]} 26. Ne5 {[%emt 0:01:09]} Rd2 {[%emt 0:00:55]} 27. R1e2 {[%emt 0:06:31]} Rd1+ {[%emt 0:00:50]} 28. Re1 {[%emt 0:00:28]} Rd2 {[%emt 0:00:03]} 29. R1e2 {[%emt 0:00:04]} Rxe2 {[%emt 0:00:17]} 30. Rxe2 {[%emt 0:00:02]} Qe6 {[%emt 0:02:58]} 31. Re3 {[%emt 0:02:59]} Qxa2 {[%emt 0:00:41]} 32. b3 {[%emt 0:03:50]} Bd5 {[%emt 0:01:02]} 33. Nf3 {[%emt 0:04:35]} Rd8 {[%emt 0:02:23]} 34. Qh4 {[%emt 0:03:40]} Rc8 {[%emt 0:00:59]} 35. g5 {[%emt 0:00:39]} Bxf3 {[%emt 0:00:44]} 36. Rxf3 {[%emt 0:01:13]} Qa1+ {[%emt 0:00:26]} 37. Kh2 {[%emt 0:00:03]} Qe5+ {[%emt 0:00:53]} 38. Rg3 {[%emt 0:00:32]} Rc6 {[%emt 0:02:14]} 39. f4 {[%emt 0:01:30]} Qe7 {[%emt 0:00:51]} 40. Qg4 {[%emt 0:00:41]} hxg5 {[%emt 0:01:07]} 41. fxg5 {[%emt 0:00:47]} Qe5 {[%emt 0:02:02]} 42. Qd7 {[%emt 0:03:40]} g6 {[%emt 0:06:12]} 43. Qd8+ {[%emt 0:03:38]} Kg7 {[%emt 0:00:53]} 44. Qd2 {[%emt 0:01:00]} Rc5 {[%emt 0:04:43]} 45. Kh3 {[%emt 0:03:04]} Rd5 {[%emt 0:00:49]} 46. Qf2 {[%emt 0:03:47]} Rb5 {[%emt 0:03:04]} 47. Qf1 {[%emt 0:04:52]} Rb4 {[%emt 0:03:44]} 48. Qd3 {[%emt 0:04:56]} Qe6+ {[%emt 0:03:57]} 49. Kh2 {[%emt 0:00:04]} Rh4+ {[%emt 0:00:12]} 50. Rh3 {[%emt 0:00:10]} Qe5+ {[%emt 0:00:42]} 51. Kg1 {[%emt 0:01:24]} Qe1+ {[%emt 0:00:09]} 52. Kh2 {[%emt 0:00:15]} Qe5+ {[%emt 0:00:07]} 53. Kg1 {[%emt 0:00:02]} Rxh3 {[%emt 0:00:22]} 54. Qxh3 {[%emt 0:00:19]} Qc5+ {[%emt 0:00:17]} 55. Kh1 {[%emt 0:00:38]} Qc1+ {[%emt 0:00:03]} 56. Kh2 {[%emt 0:00:06]} Qxg5 {[%emt 0:00:18]} 57. Qc3+ {[%emt 0:00:26]} Kh7 {[%emt 0:00:19]} 58. Qc4 {[%emt 0:00:57]} Qe5+ {[%emt 0:00:24]} 59. Kh1 {[%emt 0:01:54]} Kg7 {[%emt 0:00:07]} 60. Qa4 {[%emt 0:00:32]} Qe1+ {[%emt 0:01:24]} 61. Kh2 {[%emt 0:00:02]} Qe5+ {[%emt 0:00:05]} 62. Kh1 {[%emt 0:00:22]} b6 {[%emt 0:00:08]} 63. Qc6 {[%emt 0:01:13]} Qh5+ {[%emt 0:00:26]} 64. Kg1 {[%emt 0:00:03]} Qc5+ {[%emt 0:00:04]} 0-1

[Event "90th GER-ch 2019"]
[Site "Magdeburg"]
[Date "2019.06.01"]
[Round "9.4"]
[White "Krassowizkij, Jaroslaw"]
[Black "Kvetny, Mark"]
[Result "0-1"]
[ECO "A16"]
[WhiteElo "2450"]
[BlackElo "2414"]
[Annotator "ChessBase"]
[PlyCount "98"]
[EventDate "2019.05.26"]
[EventType "tourn"]
[EventCountry "GER"]
[SourceTitle "playchess.com"]
[Source "ChessBase"]
[SourceQuality "1"]
[TimeControl "40/5400+30:1800+30"]

1. c4 {[%emt 0:00:00]} Nf6 {[%emt 0:00:21]} 2. Nc3 {[%emt 0:00:00]} e5 3. Nf3 {[%emt 0:03:03]} d6 {[%emt 0:04:30]} 4. g3 {[%emt 0:03:05]} Be7 {[%emt 0:01:33]} 5. Bg2 {[%emt 0:02:08]} O-O {[%emt 0:01:06]} 6. d4 {[%emt 0:02:16]} Nbd7 {[%emt 0:00:15]} 7. O-O {[%emt 0:00:13]} c6 {[%emt 0:00:19]} 8. e4 {[%emt 0:01:36]} a6 {[%emt 0:00:18]} 9. h3 {[%emt 0:09:32]} Qc7 {[%emt 0:11:35]} 10. Qe2 {[%emt 0:04:28]} b5 {[%emt 0:05:33]} 11. Rd1 {[%emt 0:16:14]} Re8 {[%emt 0:05:39]} 12. a3 {[%emt 0:13:12]} exd4 {[%emt 0:09:12]} 13. Nxd4 {[%emt 0:00:19]} Ne5 {[%emt 0:01:06]} 14. cxb5 {[%emt 0:04:40]} axb5 {[%emt 0:01:27]} 15. Be3 {[%emt 0:00:05]} Bb7 {[%emt 0:02:27]} 16. Rac1 {[%emt 0:01:15]} Qb8 {[%emt 0:02:10]} 17. Nf5 {[%emt 0:02:26]} Bf8 {[%emt 0:05:30]} 18. f4 {[%emt 0:01:02]} Ned7 {[%emt 0:03:10]} 19. Qd2 {[%emt 0:03:49]} Re6 {[%emt 0:02:03]} 20. Nd4 {[%emt 0:00:43]} Re8 {[%emt 0:02:06]} 21. Nf5 {[%emt 0:04:07]} Re6 {[%emt 0:00:16]} 22. g4 {[%emt 0:00:09]} c5 {[%emt 0:04:27]} 23. Ng3 {[%emt 0:00:42]} Nb6 {[%emt 0:05:32]} 24. Nxb5 {[%emt 0:03:07]} Nxe4 {[%emt 0:05:23]} 25. Bxe4 {[%emt 0:01:34]} Bxe4 {[%emt 0:00:20]} 26. f5 {[%emt 0:02:01]} Re8 {[%emt 0:00:19]} 27. Bf4 {[%emt 0:08:17]} Bd5 {[%emt 0:06:15]} 28. Qf2 {[%emt 0:04:49]} Ra5 {[%emt 0:09:24]} 29. Nc3 {[%emt 0:03:33]} Ba8 {[%emt 0:01:18]} 30. f6 {[%emt 0:00:44]} g6 {[%emt 0:03:33]} 31. Re1 {[%emt 0:00:45]} Nd7 {[%emt 0:03:02]} 32. Rxe8 {[%emt 0:01:31]} Qxe8 {[%emt 0:00:01]} 33. Re1 {[%emt 0:00:06]} Qc8 {[%emt 0:01:29]} 34. g5 {[%emt 0:01:48]} Ne5 {[%emt 0:01:21]} 35. Bxe5 {[%emt 0:00:10]} dxe5 {[%emt 0:00:04]} 36. Rxe5 {[%emt 0:01:01]} Qxh3 {[%emt 0:00:42]} 37. Nce4 {[%emt 0:01:53]} h5 {[%emt 0:02:24]} 38. Qf1 {[%emt 0:01:51]} Qg4 {[%emt 0:00:41]} 39. Qe2 {[%emt 0:00:04]} Qd7 {[%emt 0:02:04]} 40. Qd2 {[%emt 0:01:04]} Qc7 {[%emt 0:00:31]} 41. Re8 {[%emt 0:01:49]} Ra4 {[%emt 0:05:04]} 42. Qd6 {[%emt 0:01:20]} Qxd6 {[%emt 0:00:24]} 43. Nxd6 {[%emt 0:00:04]} Bc6 {[%emt 0:02:35]} 44. Rc8 {[%emt 0:11:57]} Bd7 {[%emt 0:01:19]} 45. Rd8 {[%emt 0:00:37]} Rg4 {[%emt 0:01:37]} 46. Kh2 {[%emt 0:00:55]} Rh4+ {[%emt 0:08:39]} 47. Kg1 {[%emt 0:04:52]} Rd4 {[%emt 0:01:31]} 48. Rxd7 {[%emt 0:01:25]} Bxd6 {[%emt 0:01:19]} 49. Kg2 {[%emt 0:03:40]} Bxg3 {[%emt 0:01:45]} 0-1